[Event "GER-ch Youth-U12 2022"]
[Site "Willingen"]
[Date "2022.06.07"]
[Round "4.18"]
[White "Schuricht, Emil Frederick"]
[Black "Agirretxe San Sebastian, Jesus M"]
[Result "1-0"]
[ECO "A45"]
[WhiteElo "1641"]
[BlackElo "2117"]
[Annotator "TA"]
[PlyCount "83"]
[EventDate "2022.06.05"]
[EventType "swiss"]
[EventRounds "9"]
[EventCountry "GER"]
[SourceTitle "playchess.com"]
[Source "ChessBase"]
[SourceQuality "1"]
[TimeControl "40/4500+30:900+30"]

{[%evp 9,83,35,52,39,55,37,51,39,43,38,39,0,0,0,0,0,0,0,0,0,116,-45,-49,-65,-55,-212,-284,-270,-169,-164,0,-237,0,0,0,0,0,0,0,-49,-3,0,0,0,0,-22,0,0,94,98,180,196,186,181,176,172,197,161,181,182,193,197,245,156,470,453,5618,5622,5606,5606,5525,5498,5414,2553,1148,891]} 1. d4 {[%emt 0:00:00]} Nf6 {[%emt 0:00:00]} 2. Bg5 {[%emt 0:00:00]} e6 {[%emt 0:00:00]} 3. e4 {[%emt 0:00:00][%cal Be2e4,Be4e5][%mdl 32]} Be7 {[%emt 0:00:00]} 4. e5 {[%emt 0:00:00]} Ne4 {[%emt 0:00:00]} 5. Bxe7 {[%emt 0:00:00]} Qxe7 {[%emt 0:00:00]} 6. Bd3 {[%emt 0:13:58] A45: Trompowsky Attack.} d5 {[%emt 0:06:16]} 7. c3 {[%emt 0:11:04] Inhibits Qb4.} O-O {[%emt 0:09:56] [#]} 8. Ne2 $146 {[%emt 0:02:29] White is slightly better.} ({Predecessor:} 8. Nd2 Nxd2 9. Qxd2 f5 10. exf6 Rxf6 11. Qc2 g6 12. Nf3 Rf4 13. h4 Nc6 14. O-O-O {1-0 (28) Tagos,B-Asher,B (1419) Wellington 2016}) 8... c5 {[%emt 0:02:28]} 9. f3 {[%emt 0:02:05]} f5 {[%emt 0:03:07][%cal Oe7g5]} 10. fxe4 {[%emt 0:01:34]} fxe4 {[%emt 0:00:09]} 11. Bc2 {[%emt 0:00:58]} (11. Rf1 Rxf1+ 12. Kxf1 exd3 13. Qxd3 b6 $17) 11... Qf7 {[%emt 0:00:32]} 12. Kd2 {[%emt 0:02:27]} Nc6 {[%emt 0:01:32]} 13. Na3 {[%emt 0:07:08]} cxd4 {[%emt 0:01:42]} 14. cxd4 {[%emt 0:00:20]} Nxd4 {[%emt 0:02:03]} 15. Nxd4 $2 {[%emt 0:01:38]} ({White must play} 15. Rf1 $1 $16 {[%cal Rf1f7]} Qxf1 16. Qxf1 Rxf1 17. Rxf1) 15... Qf4+ $15 {[%emt 0:00:23]} 16. Kc3 {[%emt 0:02:38] aiming for Qd2.} Qe3+ {[%emt 0:00:17][%mdl 1024] Black has compensation.} 17. Kb4 $2 {[%emt 0:03:18]} ({Only move:} 17. Bd3 $1 $15 Bd7 18. Nac2 Rfc8+ 19. Kb3 Rxc2 20. Nxc2 Qb6+ 21. Nb4 exd3 22. Qxd3) 17... Bd7 $19 {[%emt 0:05:26] ( -> ...a5+)} 18. Nab5 {[%emt 0:06:54]} Rfc8 {[%emt 0:01:00]} 19. b3 {[%emt 0:03:20] And now Qc1 would win.} (19. Ka5 Rc4 20. Nc3 Rxd4 21. Qh5 b6+ 22. Ka6 Bc8+ 23. Kb5 a6+ 24. Kxb6 Rb4+ 25. Kc7 Qb6#) 19... a5+ $2 {[%emt 0:02:24]} (19... Bxb5 $19 20. Ka3 (20. Kxb5 {gets mated.} Qc3) 20... Bd3) 20. Ka4 {[%emt 0:05:48]} (20. Ka3 $11 Bxb5 21. Re1) 20... Qc3 $2 {[%emt 0:02:10]} (20... Rc5 $19 21. Ka3 Bxb5 22. Nxb5 (22. Nxe6 $2 a4 $19) 22... a4) 21. Ka3 $11 {[%emt 0:00:15]} Bxb5 {[%emt 0:02:29]} 22. Nxb5 {[%emt 0:00:13]} Qb4+ {[%emt 0:00:20]} 23. Kb2 {[%emt 0:00:05] Strongly threatening a4.} Qxb5 {[%emt 0:00:11]} 24. Rc1 {[%emt 0:02:07]} (24. Qd2 $11) 24... a4 {[%emt 0:01:25]} (24... Qb4 $1 $15 {deserves consideration.}) 25. Qd2 {[%emt 0:04:35]} Qb6 {[%emt 0:05:33]} 26. Rhe1 {[%emt 0:01:12]} Rc7 {[%emt 0:08:45]} 27. Bd1 {[%emt 0:03:16]} a3+ {[%emt 0:01:44]} 28. Kb1 {[%emt 0:00:11]} Rac8 {[%emt 0:00:39]} (28... Rxc1+ $11 29. Qxc1 Qd4) 29. Bg4 $16 {[%emt 0:00:29]} e3 {[%emt 0:03:00] [#]} (29... Rxc1+ $16 30. Rxc1 Rxc1+ 31. Qxc1 h5 32. Bxh5 Qd4) 30. Rxc7 $1 $18 {[%emt 0:01:14]} exd2 {[%emt 0:00:51]} 31. Rxc8+ {[%emt 0:00:05]} Kf7 {[%emt 0:00:06]} 32. Rf1+ {[%emt 0:00:39]} Kg6 {[%emt 0:00:22] [#] Threatens to win with ...Qd4.} 33. Rc2 $1 {[%emt 0:00:20]} Qd4 {[%emt 0:00:42] [#]} 34. Bf3 {[%emt 0:00:22]} Qxe5 {[%emt 0:01:18] ...Qe1+ is the strong threat.} 35. Rxd2 {[%emt 0:00:11]} b5 {[%emt 0:04:32]} (35... Kg5 $142 36. g3 Kh6) 36. Re2 {[%emt 0:00:26]} Qd6 {[%emt 0:03:34]} (36... Qc3 $16 {is a better chance.}) 37. Rfe1 {[%emt 0:00:33] White is clearly winning.} Kf6 {[%emt 0:00:26]} (37... Qxh2 $142 38. Rxe6+ Kf5) 38. Rxe6+ {[%emt 0:01:25]} Qxe6 {[%emt 0:00:10]} 39. Rxe6+ {[%emt 0:00:03]} Kxe6 {[%emt 0:00:11]} 40. b4 {[%emt 0:01:38]} Ke5 {[%emt 0:00:26]} 41. Kc2 {[%emt 0:15:57]} (41. Be2 $142 h5 42. Bxb5) 41... Kd4 {[%emt 0:18:43]} 42. Be2 {[%emt 0:00:12] Quite a comeback for White.  Weighted Error Value: White=0.29 (precise) /Black=0.49} 1-0

[Event "GER-ch Youth-U12 2022"]
[Site "Willingen"]
[Date "2022.06.07"]
[Round "4.19"]
[White "Burkart, Lloyd Shang"]
[Black "Xu, Wanghan"]
[Result "1/2-1/2"]
[ECO "D34"]
[WhiteElo "1559"]
[BlackElo "1419"]
[Annotator "NA RC COMBH"]
[PlyCount "76"]
[EventDate "2022.06.05"]
[EventType "swiss"]
[EventRounds "9"]
[EventCountry "GER"]
[SourceTitle "playchess.com"]
[Source "ChessBase"]
[SourceQuality "1"]
[TimeControl "40/4500+30:900+30"]

1. d4 {[%emt 0:00:00]} Nf6 {[%emt 0:00:00]} 2. c4 {[%emt 0:00:00]} e6 {[%emt 0:00:00]} 3. g3 {[%emt 0:00:00]} d5 {[%emt 0:00:00]} 4. Nf3 {[%emt 0:00:00]} Be7 {[%emt 0:00:00]} 5. Bg2 {[%emt 0:00:00]} O-O {[%emt 0:00:00]} 6. O-O {[%emt 0:00:00]} c5 {[%emt 0:00:00]} 7. cxd5 {[%emt 0:00:00]} exd5 {[%emt 0:00:00]} 8. dxc5 {[%emt 0:00:00]} Bxc5 {[%emt 0:00:00]} 9. Nc3 {[%emt 0:00:00]} Nc6 {[%emt 0:00:00]} 10. a3 {[%emt 0:00:00]} Re8 {[%emt 0:00:00]} 11. b4 {[%emt 0:00:00]} Bf8 {[%emt 0:00:00]} 12. Bb2 {[%emt 0:14:23]} Be6 {[%emt 0:00:00]} 13. Rc1 {[%emt 0:02:40]} Rc8 {[%emt 0:00:00]} 14. Qa4 {[%emt 0:11:24]} a6 {[%emt 0:00:00]} 15. Rfd1 {[%emt 0:00:30]} Qb6 {[%emt 0:01:09]} 16. e3 {[%emt 0:05:59]} Red8 {[%emt 0:02:59]} 17. Nd4 {[%emt 0:01:42]} Nxd4 {[%emt 0:02:40]} 18. Rxd4 {[%emt 0:00:58]} Bd7 {[%emt 0:03:13]} 19. Qd1 {[%emt 0:01:38]} Be6 {[%emt 0:03:02]} 20. Nxd5 {[%emt 0:05:22]} Nxd5 {[%emt 0:00:54]} 21. Rxc8 {[%emt 0:02:16]} Rxc8 {[%emt 0:00:56]} 22. Bxd5 {[%emt 0:01:43]} Bxd5 {[%emt 0:00:57]} 23. Rxd5 {[%emt 0:00:04]} h6 {[%emt 0:00:45]} 24. Qd4 {[%emt 0:05:53]} Qg6 {[%emt 0:01:04]} 25. Kg2 {[%emt 0:02:34]} Qc6 {[%emt 0:00:28]} 26. Kg1 {[%emt 0:03:20]} Qg6 {[%emt 0:00:11]} 27. h4 {[%emt 0:06:25]} Be7 {[%emt 0:03:33]} 28. Qd3 {[%emt 0:06:08]} Qg4 {[%emt 0:02:34]} 29. Rd4 {[%emt 0:00:40]} Qh3 {[%emt 0:01:43]} 30. Rf4 {[%emt 0:01:00]} Bf6 {[%emt 0:00:20]} 31. Qe2 {[%emt 0:01:20]} Be5 {[%emt 0:02:24]} 32. Re4 {[%emt 0:01:56]} Bf6 {[%emt 0:00:45]} 33. Qd2 {[%emt 0:05:33]} Qf5 {[%emt 0:01:12]} 34. Qd3 {[%emt 0:03:06]} Qh3 {[%emt 0:04:38]} 35. Qb1 {[%emt 0:01:38]} Bxb2 {[%emt 0:03:14]} 36. Qxb2 {[%emt 0:00:02]} Qf5 {[%emt 0:00:21]} 37. Qe5 {[%emt 0:02:41]} Qh3 {[%emt 0:00:25]} 38. Qb2 {[%emt 0:00:04]} Qf5 {[%emt 0:00:33]} 1/2-1/2

[Event "GER-ch Youth-U12 2022"]
[Site "Willingen"]
[Date "2022.06.07"]
[Round "4.20"]
[White "Pimenov, Danil"]
[Black "Mukazhanov, Mansur"]
[Result "1-0"]
[ECO "C00"]
[WhiteElo "1337"]
[BlackElo "1279"]
[Annotator "NA RC COMBH"]
[PlyCount "67"]
[EventDate "2022.06.05"]
[EventType "swiss"]
[EventRounds "9"]
[EventCountry "GER"]
[SourceTitle "playchess.com"]
[Source "ChessBase"]
[SourceQuality "1"]
[TimeControl "40/4500+30:900+30"]

1. e4 {[%emt 0:00:00]} e6 {[%emt 0:00:00]} 2. b3 {[%emt 0:00:00]} d5 {[%emt 0:00:00]} 3. Bb2 {[%emt 0:00:00]} d4 {[%emt 0:00:00]} 4. Nf3 {[%emt 0:00:00]} c5 {[%emt 0:00:00]} 5. d3 {[%emt 0:00:00]} Nc6 {[%emt 0:00:00]} 6. Nbd2 {[%emt 0:00:00]} e5 {[%emt 0:00:00]} 7. Be2 {[%emt 0:00:00]} Bd6 {[%emt 0:00:00]} 8. O-O {[%emt 0:00:00]} Nge7 {[%emt 0:00:00]} 9. c3 {[%emt 0:00:00]} O-O {[%emt 0:00:00]} 10. cxd4 {[%emt 0:00:00]} exd4 {[%emt 0:00:00]} 11. Nc4 {[%emt 0:00:00]} b6 {[%emt 0:00:00]} 12. Nxd6 {[%emt 0:00:00]} Qxd6 {[%emt 0:00:00]} 13. Nd2 {[%emt 0:00:00]} Bb7 {[%emt 0:00:00]} 14. f4 {[%emt 0:00:00]} f5 {[%emt 0:00:00]} 15. Nc4 {[%emt 0:00:00]} Qe6 {[%emt 0:00:00]} 16. e5 {[%emt 0:01:36]} Nd5 {[%emt 0:00:00]} 17. Bf3 {[%emt 0:04:31]} Rad8 {[%emt 0:00:00]} 18. Bc1 {[%emt 0:05:49]} b5 {[%emt 0:00:00]} 19. Nd6 {[%emt 0:00:34]} Rxd6 {[%emt 0:00:00]} 20. exd6 {[%emt 0:00:09]} Qxd6 {[%emt 0:00:00]} 21. Bd2 {[%emt 0:02:16]} Ne3 {[%emt 0:00:00]} 22. Bxe3 {[%emt 0:00:15]} dxe3 {[%emt 0:00:00]} 23. Bxc6 {[%emt 0:00:21]} Bxc6 {[%emt 0:00:00]} 24. Qe2 {[%emt 0:00:50]} Re8 {[%emt 0:00:00]} 25. Rac1 {[%emt 0:00:58]} b4 {[%emt 0:00:00]} 26. Rc4 {[%emt 0:06:12]} Bb5 {[%emt 0:00:00]} 27. g3 {[%emt 0:01:29]} Qd5 {[%emt 0:00:00]} 28. h3 {[%emt 0:08:26]} Bxc4 {[%emt 0:00:29]} 29. dxc4 {[%emt 0:00:29]} Qe4 {[%emt 0:02:18]} 30. Rd1 {[%emt 0:01:43]} a5 {[%emt 0:02:06]} 31. Rd5 {[%emt 0:00:55]} g5 {[%emt 0:01:02]} 32. Qh5 {[%emt 0:03:14]} Qe7 {[%emt 0:00:40]} 33. Re5 {[%emt 0:00:29]} g4 {[%emt 0:02:19]} 34. Qxe8+ {[%emt 0:00:29]} 1-0

[Event "GER-ch Youth-U12 2022"]
[Site "Willingen"]
[Date "2022.06.07"]
[Round "4.21"]
[White "Gulamzada, Elmir"]
[Black "Fettig, Michel"]
[Result "1-0"]
[ECO "C01"]
[WhiteElo "1539"]
[BlackElo "1407"]
[Annotator "NA RC COMBH"]
[PlyCount "48"]
[EventDate "2022.06.05"]
[EventType "swiss"]
[EventRounds "9"]
[EventCountry "GER"]
[SourceTitle "playchess.com"]
[Source "ChessBase"]
[SourceQuality "1"]
[TimeControl "40/4500+30:900+30"]

1. e4 {[%emt 0:00:00]} e6 {[%emt 0:00:00]} 2. d4 {[%emt 0:00:00]} d5 {[%emt 0:00:00]} 3. exd5 {[%emt 0:00:00]} exd5 {[%emt 0:00:00]} 4. Bd3 {[%emt 0:00:00]} Nc6 {[%emt 0:00:00]} 5. c3 {[%emt 0:00:00]} Bd6 {[%emt 0:00:00]} 6. Nf3 {[%emt 0:00:00]} Nge7 {[%emt 0:00:00]} 7. Be3 {[%emt 0:00:00]} Bf5 {[%emt 0:00:00]} 8. h3 {[%emt 0:02:01]} Qd7 {[%emt 0:01:27]} 9. g4 {[%emt 0:11:26]} Bxd3 {[%emt 0:07:50]} 10. Qxd3 {[%emt 0:00:07]} h5 {[%emt 0:02:26]} 11. g5 {[%emt 0:04:41]} g6 {[%emt 0:02:57]} 12. Nbd2 {[%emt 0:09:08]} O-O-O {[%emt 0:05:15]} 13. O-O-O {[%emt 0:03:53]} Nf5 {[%emt 0:03:10]} 14. Qb5 {[%emt 0:05:27]} Qe6 {[%emt 0:06:45]} 15. Rhe1 {[%emt 0:02:54]} a6 {[%emt 0:07:29]} 16. Qb3 {[%emt 0:01:23]} Nce7 {[%emt 0:04:29]} 17. Bf4 {[%emt 0:03:02]} Qd7 {[%emt 0:00:51]} 18. Be5 {[%emt 0:01:34]} Rh7 {[%emt 0:04:09]} 19. Bf6 {[%emt 0:01:53]} Bf4 {[%emt 0:05:36]} 20. Ne5 {[%emt 0:05:01]} Qd6 {[%emt 0:06:44]} 21. Re2 {[%emt 0:06:01]} Re8 {[%emt 0:03:07]} 22. Rde1 {[%emt 0:03:16]} Ng8 {[%emt 0:01:56]} 23. Nec4 {[%emt 0:00:39]} Bxd2+ {[%emt 0:03:24]} 24. Kc2 {[%emt 0:04:48]} Qd8 {[%emt 0:00:01]} 1-0

[Event "GER-ch Youth-U12 2022"]
[Site "Willingen"]
[Date "2022.06.07"]
[Round "4.22"]
[White "Nguyen, Bach Khoi"]
[Black "Albrecht, Neil"]
[Result "0-1"]
[ECO "C54"]
[WhiteElo "1261"]
[BlackElo "1376"]
[Annotator "NA RC COMBH"]
[PlyCount "67"]
[EventDate "2022.06.05"]
[EventType "swiss"]
[EventRounds "9"]
[EventCountry "GER"]
[SourceTitle "playchess.com"]
[Source "ChessBase"]
[SourceQuality "1"]
[TimeControl "40/4500+30:900+30"]

1. e4 {[%emt 0:00:00]} e5 {[%emt 0:00:00]} 2. Nf3 {[%emt 0:00:00]} Nc6 {[%emt 0:00:00]} 3. Bc4 {[%emt 0:00:00]} Bc5 {[%emt 0:00:00]} 4. c3 {[%emt 0:00:00]} Nf6 {[%emt 0:00:00]} 5. d3 {[%emt 0:00:00]} O-O {[%emt 0:00:00]} 6. Nbd2 {[%emt 0:00:00]} d5 {[%emt 0:00:00]} 7. exd5 {[%emt 0:00:00]} Nxd5 {[%emt 0:00:00]} 8. O-O {[%emt 0:00:00]} Nb6 {[%emt 0:00:00]} 9. Bb3 {[%emt 0:00:00]} Qxd3 {[%emt 0:00:00]} 10. Bc2 {[%emt 0:00:00]} Qd8 {[%emt 0:00:00]} 11. b4 {[%emt 0:00:00]} Bd6 {[%emt 0:00:00]} 12. a4 {[%emt 0:00:00]} f5 {[%emt 0:00:00]} 13. a5 {[%emt 0:00:00]} Nd7 {[%emt 0:01:50]} 14. b5 {[%emt 0:00:00]} Ncb8 {[%emt 0:01:48]} 15. Bb3+ {[%emt 0:00:21]} Kh8 {[%emt 0:00:08]} 16. Nc4 {[%emt 0:00:53]} Qe7 {[%emt 0:12:04]} 17. Ng5 {[%emt 0:20:31]} Nc5 {[%emt 0:04:30]} 18. Ba2 {[%emt 0:08:42]} Be6 {[%emt 0:16:19]} 19. Qh5 {[%emt 0:11:56]} g6 {[%emt 0:01:12]} 20. Qh6 {[%emt 0:02:12]} Nbd7 {[%emt 0:02:37]} 21. Ba3 {[%emt 0:03:49]} f4 {[%emt 0:09:27]} 22. Nxe5 {[%emt 0:16:56]} Nxe5 {[%emt 0:06:24]} 23. Bxc5 {[%emt 0:00:19]} Bxa2 {[%emt 0:00:39]} 24. Bxd6 {[%emt 0:00:12]} cxd6 {[%emt 0:00:11]} 25. Rxa2 {[%emt 0:00:10]} Rf5 {[%emt 0:04:47]} 26. Ne4 {[%emt 0:02:36]} Raf8 {[%emt 0:02:51]} 27. g4 {[%emt 0:03:23]} Nxg4 {[%emt 0:01:18]} 28. Qh3 {[%emt 0:00:08]} Qxe4 {[%emt 0:04:48]} 29. Qxg4 {[%emt 0:00:48]} Qd5 {[%emt 0:00:23]} 30. c4 {[%emt 0:03:06]} Qxc4 {[%emt 0:00:03]} 31. Rd2 {[%emt 0:00:02]} Qd5 {[%emt 0:00:05]} 32. Ra2 {[%emt 0:00:07]} Qc4 {[%emt 0:00:09]} 33. Rb2 {[%emt 0:00:01]} h6 {[%emt 0:00:04]} 34. h4 {[%emt 0:00:04]} 0-1

[Event "GER-ch Youth-U12 2022"]
[Site "Willingen"]
[Date "2022.06.07"]
[Round "4.23"]
[White "Hellenbroich, Hanno"]
[Black "Kullmann, Max"]
[Result "0-1"]
[ECO "A00"]
[WhiteElo "1274"]
[BlackElo "1442"]
[Annotator "NA RC COMBH"]
[PlyCount "96"]
[EventDate "2022.06.05"]
[EventType "swiss"]
[EventRounds "9"]
[EventCountry "GER"]
[SourceTitle "playchess.com"]
[Source "ChessBase"]
[SourceQuality "1"]
[TimeControl "40/4500+30:900+30"]

1. e4 {[%emt 0:00:00]} d5 {[%emt 0:00:00]} 2. Nc3 {[%emt 0:00:00]} dxe4 {[%emt 0:00:00]} 3. Nxe4 {[%emt 0:00:00]} e5 {[%emt 0:00:00]} 4. Nf3 {[%emt 0:00:00]} Nc6 {[%emt 0:00:00]} 5. Bb5 {[%emt 0:00:00]} Bd7 {[%emt 0:00:00]} 6. Qe2 {[%emt 0:00:00]} Qe7 {[%emt 0:00:00]} 7. d3 {[%emt 0:00:00]} O-O-O {[%emt 0:03:32]} 8. Bxc6 {[%emt 0:00:00]} Bxc6 {[%emt 0:00:16]} 9. Be3 {[%emt 0:00:00]} b6 {[%emt 0:17:10]} 10. O-O {[%emt 0:00:00]} f5 {[%emt 0:09:56]} 11. Bg5 {[%emt 0:00:00]} Nf6 {[%emt 0:00:31]} 12. Nxf6 {[%emt 0:00:00]} gxf6 {[%emt 0:00:08]} 13. Bh4 {[%emt 0:05:02]} Qg7 {[%emt 0:07:43]} 14. g3 {[%emt 0:01:12]} Qg4 {[%emt 0:15:44]} 15. Kg2 {[%emt 0:04:23]} Be7 {[%emt 0:01:53]} 16. h3 {[%emt 0:01:38]} Qh5 {[%emt 0:00:27]} 17. c3 {[%emt 0:10:19]} Rhg8 {[%emt 0:06:36]} 18. d4 {[%emt 0:01:52]} Qxh4 {[%emt 0:04:26]} 19. dxe5 {[%emt 0:05:47]} fxe5 {[%emt 0:03:11]} 20. Qxe5 {[%emt 0:01:07]} Qe4 {[%emt 0:00:51]} 21. Qxe4 {[%emt 0:01:32]} Bxe4 {[%emt 0:00:30]} 22. Rfe1 {[%emt 0:00:19]} Bc5 {[%emt 0:00:55]} 23. b4 {[%emt 0:00:29]} Bf8 {[%emt 0:03:57]} 24. a4 {[%emt 0:03:05]} Bh6 {[%emt 0:00:00]} 25. Rxe4 {[%emt 0:02:39]} fxe4 {[%emt 0:00:00]} 26. Ne5 {[%emt 0:00:02]} Bg7 {[%emt 0:02:59]} 27. Nc6 {[%emt 0:00:05]} Rd7 {[%emt 0:00:22]} 28. Nxa7+ {[%emt 0:00:46]} Kb7 {[%emt 0:00:14]} 29. Nb5 {[%emt 0:01:33]} c6 {[%emt 0:00:18]} 30. Na3 {[%emt 0:00:55]} Bxc3 {[%emt 0:00:13]} 31. Rb1 {[%emt 0:00:19]} Rd4 {[%emt 0:01:06]} 32. Rb3 {[%emt 0:02:24]} Bd2 {[%emt 0:01:20]} 33. Nc2 {[%emt 0:03:27]} Rd3 {[%emt 0:00:45]} 34. Rb2 {[%emt 0:00:20]} Rf8 {[%emt 0:01:50]} 35. a5 {[%emt 0:01:46]} Bc3 {[%emt 0:01:04]} 36. Rb3 {[%emt 0:00:21]} Rd2 {[%emt 0:01:08]} 37. a6+ {[%emt 0:02:30]} Ka7 {[%emt 0:00:53]} 38. Ne3 {[%emt 0:00:35]} Bd4 {[%emt 0:00:30]} 39. h4 {[%emt 0:00:43]} Bxe3 {[%emt 0:01:05]} 40. Rxe3 {[%emt 0:00:03]} Rdxf2+ {[%emt 0:00:13]} 41. Kh3 {[%emt 0:15:18]} Rg8 {[%emt 0:15:55]} 42. Rxe4 {[%emt 0:01:24]} Rf3 {[%emt 0:00:17]} 43. b5 {[%emt 0:01:17]} cxb5 {[%emt 0:00:15]} 44. Re7+ {[%emt 0:00:22]} Kxa6 {[%emt 0:00:10]} 45. Rxh7 {[%emt 0:00:26]} Rfxg3+ {[%emt 0:00:50]} 46. Kh2 {[%emt 0:00:08]} Rc3 {[%emt 0:00:35]} 47. h5 {[%emt 0:00:18]} Rd8 {[%emt 0:00:36]} 48. Rg7 {[%emt 0:00:30]} Rd2+ {[%emt 0:00:09]} 0-1

[Event "GER-ch Youth-U12 2022"]
[Site "Willingen"]
[Date "2022.06.07"]
[Round "4.24"]
[White "Radeke, Timothy"]
[Black "Prashanthakumar, Arju"]
[Result "1-0"]
[ECO "C56"]
[WhiteElo "1129"]
[BlackElo "1265"]
[Annotator "NA RC COMBH"]
[PlyCount "73"]
[EventDate "2022.06.05"]
[EventType "swiss"]
[EventRounds "9"]
[EventCountry "GER"]
[SourceTitle "playchess.com"]
[Source "ChessBase"]
[SourceQuality "1"]
[TimeControl "40/4500+30:900+30"]

1. e4 {[%emt 0:00:00]} e5 {[%emt 0:00:00]} 2. Nf3 {[%emt 0:00:00]} Nc6 {[%emt 0:00:00]} 3. Bc4 {[%emt 0:00:00]} Bc5 {[%emt 0:00:00]} 4. c3 {[%emt 0:00:00]} Nf6 {[%emt 0:00:00]} 5. d4 {[%emt 0:00:00]} exd4 {[%emt 0:00:00]} 6. O-O {[%emt 0:00:00]} d5 {[%emt 0:00:00]} 7. exd5 {[%emt 0:00:00]} Nxd5 {[%emt 0:00:00]} 8. Qb3 {[%emt 0:00:00]} Be6 {[%emt 0:11:11]} 9. Qxb7 {[%emt 0:00:00]} Na5 {[%emt 0:06:36]} 10. Qb5+ {[%emt 0:00:00]} c6 {[%emt 0:07:06]} 11. Qxc5 {[%emt 0:00:00]} Qc7 {[%emt 0:06:52]} 12. Nxd4 {[%emt 0:00:00]} Nxc4 {[%emt 0:04:30]} 13. Qxc4 {[%emt 0:00:00]} O-O {[%emt 0:04:12]} 14. Qxc6 {[%emt 0:00:00]} Qe5 {[%emt 0:04:18]} 15. Nxe6 {[%emt 0:00:00]} fxe6 {[%emt 0:01:37]} 16. Bd2 {[%emt 0:00:00]} Rac8 {[%emt 0:03:23]} 17. Qa6 {[%emt 0:00:00]} Rf6 {[%emt 0:05:06]} 18. Qxc8+ {[%emt 0:00:00]} Rf8 {[%emt 0:00:12]} 19. Qa6 {[%emt 0:00:00]} Rf6 {[%emt 0:01:50]} 20. c4 {[%emt 0:00:00]} Nf4 {[%emt 0:00:27]} 21. Bxf4 {[%emt 0:00:00]} Qxf4 {[%emt 0:00:33]} 22. Qc8+ {[%emt 0:00:00]} Rf8 {[%emt 0:00:27]} 23. Qxe6+ {[%emt 0:00:00]} Kh8 {[%emt 0:00:12]} 24. Nc3 {[%emt 0:00:00]} h6 {[%emt 0:01:16]} 25. h3 {[%emt 0:00:00]} Rf6 {[%emt 0:02:05]} 26. Qe4 {[%emt 0:00:00]} Qg5 {[%emt 0:00:39]} 27. Rad1 {[%emt 0:00:00]} Rf8 {[%emt 0:00:29]} 28. Nd5 {[%emt 0:00:00]} Rb8 {[%emt 0:00:49]} 29. Ne7 {[%emt 0:00:00]} Qf6 {[%emt 0:02:18]} 30. Ng6+ {[%emt 0:00:00]} Kg8 {[%emt 0:00:17]} 31. Qd5+ {[%emt 0:00:17]} Kh7 {[%emt 0:00:31]} 32. Qd6 {[%emt 0:00:08]} Qxd6 {[%emt 0:00:40]} 33. Rxd6 {[%emt 0:00:05]} Rxb2 {[%emt 0:00:15]} 34. Re1 {[%emt 0:00:06]} Rxa2 {[%emt 0:00:25]} 35. Re8 {[%emt 0:00:07]} Ra1+ {[%emt 0:00:17]} 36. Kh2 {[%emt 0:00:05]} a5 {[%emt 0:00:14]} 37. Rh8# {[%emt 0:00:37]} 1-0

[Event "GER-ch Youth-U12 2022"]
[Site "Willingen"]
[Date "2022.06.07"]
[Round "4.26"]
[White "Wang, Arthur D"]
[Black "Halich, Jan Finnian"]
[Result "1-0"]
[ECO "B01"]
[WhiteElo "2090"]
[BlackElo "877"]
[Annotator "TA"]
[PlyCount "55"]
[EventDate "2022.06.05"]
[EventType "swiss"]
[EventRounds "9"]
[EventCountry "GER"]
[SourceTitle "playchess.com"]
[Source "ChessBase"]
[SourceQuality "1"]
[TimeControl "40/4500+30:900+30"]

{[%evp 9,54,35,207,6,11,4,5,-35,-17,-48,-43,-64,-47,-40,-51,-58,1,-8,-33,-64,0,0,8,0,14,15,56,0,45,47,87,28,127,63,60,-81,0,0,38,29,49,-294,29996,29997,29997,29998,29999]} 1. e4 {[%emt 0:00:00]} d5 {[%emt 0:00:00]} 2. exd5 {[%emt 0:00:00]} Qxd5 {[%emt 0:00:07]} 3. Nc3 {[%emt 0:00:00]} Qd8 {[%emt 0:00:00]} 4. Nf3 {[%emt 0:00:00]} Nf6 {[%emt 0:00:00]} 5. Bc4 {[%emt 0:00:00]} Bg4 $2 {[%emt 0:00:00] [#]} (5... a6 $14) 6. d3 $2 {[%emt 0:00:00] B01: Scandinavian Defence.} (6. Ne5 $1 $18 {[%csl Ge5][%cal Rc4f7]} Be6 7. Bxe6 fxe6 8. O-O) 6... e6 $11 {[%emt 0:00:00]} 7. Bg5 {[%emt 0:00:00]} Be7 {[%emt 0:00:00] [#]} 8. Qd2 $146 {[%emt 0:01:57] The position is equal.} ({Predecessor:} 8. O-O O-O 9. h3 Bh5 10. Re1 Nbd7 11. Ne4 Nxe4 12. Bxe7 Qxe7 13. dxe4 Ne5 14. Be2 {0-1 (45) Foster,C (1355)-Zemke,C (1755) Sunningdale 2007}) 8... Nbd7 {[%emt 0:00:00]} 9. O-O-O {[%emt 0:00:00]} O-O {[%emt 0:00:00]} 10. h3 {[%emt 0:00:00]} Bxf3 {[%emt 0:00:00]} 11. gxf3 {[%emt 0:00:00]} Ne5 {[%emt 0:00:00]} 12. Qe2 {[%emt 0:00:00]} Nfd7 {[%emt 0:00:00]} (12... Nc6 $15) 13. Bxe7 {[%emt 0:00:00]} Qxe7 {[%emt 0:00:00]} 14. f4 {[%emt 0:00:00] Against Qg5} Nxc4 {[%emt 0:00:00]} (14... Ng6 $15) 15. dxc4 {[%emt 0:00:00]} Rad8 {[%emt 0:00:00]} 16. Rhg1 {[%emt 0:00:00]} g6 {[%emt 0:00:00]} 17. f5 {[%emt 0:00:00]} Rfe8 {[%emt 0:00:00]} (17... Qf6 {is interesting.} 18. fxe6 fxe6 19. Rge1 Nc5) 18. fxg6 {[%emt 0:00:00]} ({White should play} 18. fxe6 $14 fxe6 19. Rge1) 18... fxg6 {[%emt 0:00:00]} 19. f4 {[%emt 0:00:00]} Qh4 {[%emt 0:00:00]} 20. Qf3 {[%emt 0:03:13] White is more active.} (20. Qe3 $16) 20... e5 {[%emt 0:00:00]} (20... Rf8 $11 {keeps the balance.}) 21. Qd5+ {[%emt 0:01:55]} (21. Qxb7 $6 Qxf4+ 22. Kb1 Qxc4 $14) (21. f5 $1 $16) 21... Kh8 $1 $14 {[%emt 0:06:47]} 22. Rdf1 {[%emt 0:06:02]} (22. Qxb7 $14 Qxf4+ 23. Kb1 Qxc4 24. Qxa7) 22... Qxh3 {[%emt 0:00:00]} (22... c6 $17 23. Qd2 Nb6) 23. Rh1 $36 {[%emt 0:01:35][%mdl 2048] White has the initiative.} Qe3+ {[%emt 0:00:00]} 24. Kb1 {[%emt 0:00:17]} exf4 {[%emt 0:00:00] aiming for ...Ne5.} 25. Rfg1 $2 {[%emt 0:01:26][%mdl 8192]} (25. Qf7 $14 {stays ahead.} Nf8 26. Nd5 (26. Qf6+ Kg8 $14)) 25... c6 $4 {[%emt 0:00:00][%mdl 8192] [#]} (25... Nf6 $19 26. Qf7 Qe7 27. Qxe7 Rxe7 28. Rxg6 Re1+ $3 {[%mdl 512]} 29. Rxe1 hxg6) 26. Rxh7+ $3 {[%emt 0:00:22][%mdl 576] Decoy. White mates.} Kxh7 {[%emt 0:00:00]} 27. Qf7+ {[%emt 0:00:11]} Kh6 {[%emt 0:00:00]} 28. Qxg6# {[%emt 0:00:11] Weighted Error Value: White=0.62/Black=0.61} 1-0